fUST/lending_fUST_20260514
["ID","MTS","AMOUNT","RATE_DAILY","PERIOD"]
[422208032,1778697041000,-500.0,0.00010799,2]
[422208029,1778697041000,-500.0,0.00010799,2]
[422208023,1778697041000,-326.41176082,0.00010799,2]
[422208021,1778697041000,-500.0,0.00010799,2]
[422208019,1778697041000,-500.0,0.00010799,2]
[422208034,1778697041000,-500.0,0.00010799,2]
[422208038,1778697041000,-500.0,0.00010799,2]
[422208040,1778697041000,-500.0,0.00010799,2]
[422208043,1778697041000,-500.0,0.00010799,2]
[422208045,1778697041000,-500.0,0.00010799,2]
[422207977,1778697041000,-500.0,0.00010799,2]
[422208013,1778697041000,-500.0,0.00010799,2]
[422208011,1778697041000,-500.0,0.00010799,2]
[422208037,1778697041000,-500.0,0.00010799,2]
[422207997,1778697041000,-500.0,0.00010799,2]
[422208009,1778697041000,-500.0,0.00010799,2]
[422207980,1778697041000,-500.0,0.00010799,2]
[422207981,1778697041000,-500.0,0.00010799,2]
[422207973,1778697041000,-500.0,0.00010799,2]
[422207970,1778697041000,-500.0,0.00010799,2]
[422207983,1778697041000,-542.77973991,0.00010799,2]
[422207971,1778697041000,-500.0,0.00010799,2]
[422207985,1778697041000,-500.0,0.00010799,2]
[422207987,1778697041000,-500.0,0.00010799,2]
[422207967,1778697041000,-500.0,0.00010799,2]
[422208001,1778697041000,-500.0,0.00010799,2]
[422208003,1778697041000,-500.0,0.00010799,2]
[422208007,1778697041000,-500.0,0.00010799,2]
[422208005,1778697041000,-500.0,0.00010799,2]
[422207998,1778697041000,-500.0,0.00010799,2]
[422207995,1778697041000,-500.0,0.00010799,2]
[422207993,1778697041000,-500.0,0.00010799,2]
[422207989,1778697041000,-500.0,0.00010799,2]
[422207991,1778697041000,-500.0,0.00010799,2]
[422208133,1778697042000,-591.27450359,0.00010872,2]
[422208127,1778697042000,-591.27450359,0.00010872,2]
[422208129,1778697042000,-591.27450359,0.00010872,2]
[422208125,1778697042000,-591.27450359,0.00010872,2]
[422208123,1778697042000,-591.27450359,0.00010872,2]
[422208119,1778697042000,-575.90885874,0.00010872,2]
[422208114,1778697042000,-575.90885874,0.00010872,2]
[422208116,1778697042000,-575.90885874,0.00010872,2]
[422208121,1778697042000,-591.27450359,0.00010872,2]
[422208106,1778697042000,-575.90885874,0.00010872,2]
[422208104,1778697042000,-575.90885874,0.00010872,2]
[422208131,1778697042000,-591.27450359,0.00010872,2]
[422208112,1778697042000,-591.27450359,0.00010872,2]
[422208118,1778697042000,-575.90885874,0.00010872,2]
[422208135,1778697042000,-591.27450359,0.00010872,2]
[422208144,1778697042000,-1455.689219,0.00010873,2]
[422208137,1778697042000,-591.27450359,0.00010872,2]
[422208152,1778697042000,-1053.7226521,0.00010873,2]
[422208154,1778697042000,-48807.9080382,0.00010873,2]
[422208158,1778697042000,-162.9390212,0.00010873,2]
[422208142,1778697042000,-591.27450359,0.00010872,2]
[422208156,1778697042000,-1331.9312346,0.00010873,2]
[422208160,1778697042000,-1358.7538,0.00010958,2]
[422208148,1778697042000,-3145.8239361,0.00010873,2]
[422208146,1778697042000,-152.198043,0.00010873,2]
[422208150,1778697042000,-25412.3542334,0.00010873,2]
[422208162,1778697042000,-500.0,0.00010958,2]
[422208164,1778697042000,-500.0,0.00010958,2]
[422208167,1778697042000,-500.0,0.00010958,2]
[422208108,1778697042000,-575.90885874,0.00010872,2]
[422208139,1778697042000,-591.27450359,0.00010872,2]
[422208102,1778697042000,-575.90885874,0.00010872,2]
[422208069,1778697042000,-500.0,0.00010799,2]
[422208110,1778697042000,-575.90885874,0.00010872,2]
[422208053,1778697042000,-500.0,0.00010799,2]
[422208054,1778697042000,-500.0,0.00010799,2]
[422208056,1778697042000,-500.0,0.00010799,2]
[422208059,1778697042000,-500.0,0.00010799,2]
[422208061,1778697042000,-500.0,0.00010799,2]
[422208065,1778697042000,-500.0,0.00010799,2]
[422208062,1778697042000,-500.0,0.00010799,2]
[422208051,1778697042000,-500.0,0.00010799,2]
[422208066,1778697042000,-500.0,0.00010799,2]
[422208049,1778697042000,-500.0,0.00010799,2]
[422208068,1778697042000,-500.0,0.00010799,2]
[422208070,1778697042000,-500.0,0.00010799,2]
[422208178,1778697042000,-500.0,0.00010958,2]
[422208072,1778697042000,-305.39970385,0.00010799,2]
[422208100,1778697042000,-575.90885874,0.00010872,2]
[422208079,1778697042000,-500.0,0.00010799,2]
[422208073,1778697042000,-500.0,0.00010799,2]
[422208075,1778697042000,-461.7090813,0.00010799,2]
[422208077,1778697042000,-500.0,0.00010799,2]
[422208082,1778697042000,-500.0,0.00010799,2]
[422208084,1778697042000,-500.0,0.00010799,2]
[422208086,1778697042000,-144871.64164309,0.000108,2]
[422208081,1778697042000,-500.0,0.00010799,2]
[422208088,1778697042000,-575.90885874,0.00010872,2]
[422208089,1778697042000,-575.90885874,0.00010872,2]
[422208093,1778697042000,-575.90885874,0.00010872,2]
[422208091,1778697042000,-575.90885874,0.00010872,2]
[422208095,1778697042000,-500.0,0.00010872,2]
[422208098,1778697042000,-377.33273071,0.00010872,2]
[422208097,1778697042000,-575.90885874,0.00010872,2]
[422208067,1778697042000,-500.0,0.00010799,2]
[422208180,1778697042000,-500.0,0.00010958,2]
[422208140,1778697042000,-591.27450359,0.00010872,2]
[422208174,1778697042000,-500.0,0.00010958,2]
[422208247,1778697042000,-500.0,0.00010958,2]
[422208249,1778697042000,-500.0,0.00010958,2]
[422208250,1778697042000,-500.0,0.00010958,2]
[422208263,1778697042000,-749.73,0.00010958,2]
[422208265,1778697042000,-500.0,0.00010958,2]
[422208267,1778697042000,-550.5,0.00010958,2]
[422208252,1778697042000,-500.0,0.00010958,2]
[422208269,1778697042000,-1395.13,0.00010958,2]
[422208257,1778697042000,-344.3401256,0.00010958,2]
[422208258,1778697042000,-500.0,0.00010958,2]
[422208270,1778697042000,-693.17,0.00010958,2]
[422208254,1778697042000,-500.0,0.00010958,2]
[422208273,1778697042000,-500.0,0.00010958,2]
[422208275,1778697042000,-1049.6,0.00010958,2]
[422208261,1778697042000,-940.17,0.00010958,2]
[422208272,1778697042000,-2000.08,0.00010958,2]
[422208277,1778697042000,-500.0,0.00010958,2]
[422208310,1778697042000,-500.0,0.00010958,2]
[422208304,1778697042000,-500.0,0.00010958,2]
[422208183,1778697042000,-500.0,0.00010958,2]
[422208308,1778697042000,-766.24,0.00010958,2]
[422208298,1778697042000,-500.0,0.00010958,2]
[422208293,1778697042000,-658.35,0.00010958,2]
[422208244,1778697042000,-500.0,0.00010958,2]
[422208281,1778697042000,-500.0,0.00010958,2]
[422208294,1778697042000,-909.77,0.00010958,2]
[422208287,1778697042000,-755.81,0.00010958,2]
[422208301,1778697042000,-1735.03,0.00010958,2]
[422208279,1778697042000,-531.39,0.00010958,2]
[422208296,1778697042000,-2402.74,0.00010958,2]
[422208290,1778697042000,-753.83,0.00010958,2]
[422208306,1778697042000,-1527.5,0.00010958,2]
[422208238,1778697042000,-881.91,0.00010958,2]
[422208284,1778697042000,-868.66,0.00010958,2]
[422208234,1778697042000,-500.0,0.00010958,2]
[422208240,1778697042000,-500.0,0.00010958,2]
[422208168,1778697042000,-500.0,0.00010958,2]
[422208176,1778697042000,-500.0,0.00010958,2]
[422208172,1778697042000,-500.0,0.00010958,2]
[422208186,1778697042000,-500.0,0.00010958,2]
[422208189,1778697042000,-500.0,0.00010958,2]
[422208188,1778697042000,-500.0,0.00010958,2]
[422208191,1778697042000,-562.04,0.00010958,2]
[422208193,1778697042000,-282.52728092,0.00010958,2]
[422208195,1778697042000,-4724.493175,0.00010958,2]
[422208207,1778697042000,-3901.993925,0.00010958,2]
[422208205,1778697042000,-500.0,0.00010958,2]
[422208213,1778697042000,-500.0,0.00010958,2]
[422208197,1778697042000,-761.31,0.00010958,2]
[422208211,1778697042000,-500.0,0.00010958,2]
[422208170,1778697042000,-500.0,0.00010958,2]
[422208201,1778697042000,-500.0,0.00010958,2]
[422208199,1778697042000,-500.0,0.00010958,2]
[422208236,1778697042000,-249.95,0.00010958,2]
[422208232,1778697042000,-187.94809331,0.00010958,2]
[422208242,1778697042000,-500.0,0.00010958,2]
[422208222,1778697042000,-500.0,0.00010958,2]
[422208227,1778697042000,-500.0,0.00010958,2]
[422208224,1778697042000,-572.11,0.00010958,2]
[422208230,1778697042000,-6981.48869,0.00010958,2]
[422208215,1778697042000,-500.0,0.00010958,2]
[422208217,1778697042000,-500.0,0.00010958,2]
[422208218,1778697042000,-816.11,0.00010958,2]
[422208203,1778697042000,-500.0,0.00010958,2]
[422208209,1778697042000,-500.0,0.00010958,2]
[422208220,1778697042000,-500.0,0.00010958,2]
[422208388,1778697043000,-500.0,0.00011232,2]
[422208382,1778697043000,-217.85318852,0.00011108,21]
[422208387,1778697043000,-500.0,0.00011232,2]
[422208385,1778697043000,-862.1733,0.00011232,2]
[422208383,1778697043000,-443.0,0.00011203,2]
[422208379,1778697043000,-300.0,0.00010971,2]
[422208372,1778697043000,-174.09747138,0.00010959,3]
[422208370,1778697043000,-1284.57,0.00010958,2]
[422208377,1778697043000,-300.0,0.00010971,2]
[422208363,1778697043000,-500.0,0.00010958,2]
[422208368,1778697043000,-500.0,0.00010958,2]
[422208380,1778697043000,-300.0,0.00010971,2]
[422208384,1778697043000,-185.0,0.00011203,2]
[422208394,1778697043000,-500.0,0.00011232,2]
[422208390,1778697043000,-500.0,0.00011232,2]
[422208391,1778697043000,-500.0,0.00011232,2]
[422208392,1778697043000,-500.0,0.00011232,2]
[422208389,1778697043000,-500.0,0.00011232,2]
[422208381,1778697043000,-500.0,0.00011073,2]
[422208405,1778697043000,-500.0,0.00011232,2]
[422208404,1778697043000,-500.0,0.00011232,2]
[422208406,1778697043000,-500.0,0.00011232,2]
[422208395,1778697043000,-500.0,0.00011232,2]
[422208396,1778697043000,-500.0,0.00011232,2]
[422208407,1778697043000,-500.0,0.00011232,2]
[422208393,1778697043000,-500.0,0.00011232,2]
[422208365,1778697043000,-1229.37,0.00010958,2]
[422208397,1778697043000,-500.0,0.00011232,2]
[422208386,1778697043000,-570.7008,0.00011232,2]
[422208366,1778697043000,-2462.18,0.00010958,2]
[422208337,1778697043000,-1002.78,0.00010958,2]
[422208375,1778697043000,-300.0,0.00010971,2]
[422208401,1778697043000,-500.0,0.00011232,2]
[422208311,1778697043000,-500.0,0.00010958,2]
[422208313,1778697043000,-343.46384104,0.00010958,2]
[422208315,1778697043000,-838.87,0.00010958,2]
[422208318,1778697043000,-500.0,0.00010958,2]
[422208316,1778697043000,-1101.26,0.00010958,2]
[422208320,1778697043000,-626.42,0.00010958,2]
[422208322,1778697043000,-516.82,0.00010958,2]
[422208329,1778697043000,-500.0,0.00010958,2]
[422208327,1778697043000,-500.0,0.00010958,2]
[422208325,1778697043000,-13657.84,0.00010958,2]
[422208324,1778697043000,-1807.79,0.00010958,2]
[422208333,1778697043000,-878.02,0.00010958,2]
[422208331,1778697043000,-653.62,0.00010958,2]
[422208335,1778697043000,-2552.96,0.00010958,2]
[422208346,1778697043000,-1979.83,0.00010958,2]
[422208348,1778697043000,-500.0,0.00010958,2]
[422208344,1778697043000,-1165.12,0.00010958,2]
[422208342,1778697043000,-1253.67,0.00010958,2]
[422208352,1778697043000,-500.0,0.00010958,2]
[422208350,1778697043000,-956.47,0.00010958,2]
[422208339,1778697043000,-627.93,0.00010958,2]
[422208354,1778697043000,-1027.1,0.00010958,2]
[422208340,1778697043000,-761.17,0.00010958,2]
[422208358,1778697043000,-500.0,0.00010958,2]
[422208360,1778697043000,-955.12,0.00010958,2]
[422208356,1778697043000,-1209.53,0.00010958,2]
[422208373,1778697043000,-300.0,0.00010971,2]
[422208361,1778697043000,-670.74,0.00010958,2]
[422208378,1778697043000,-300.0,0.00010971,2]
[422208399,1778697043000,-500.0,0.00011232,2]
[422208466,1778697043000,-761.17,0.00011232,2]
[422208403,1778697043000,-761.31,0.00011232,2]
[422208439,1778697043000,-500.0,0.00011232,2]
[422208441,1778697043000,-755.81,0.00011232,2]
[422208438,1778697043000,-531.39,0.00011232,2]
[422208444,1778697043000,-909.77,0.00011232,2]
[422208445,1778697043000,-2402.74,0.00011232,2]
[422208448,1778697043000,-500.0,0.00011232,2]
[422208451,1778697043000,-500.0,0.00011232,2]
[422208447,1778697043000,-1735.03,0.00011232,2]
[422208454,1778697043000,-500.0,0.00011232,2]
[422208455,1778697043000,-626.42,0.00011232,2]
[422208446,1778697043000,-500.0,0.00011232,2]
[422208452,1778697043000,-838.87,0.00011232,2]
[422208449,1778697043000,-1527.5,0.00011232,2]
[422208443,1778697043000,-658.35,0.00011232,2]
[422208456,1778697043000,-516.82,0.00011232,2]
[422208458,1778697043000,-13657.84,0.00011232,2]
[422208467,1778697043000,-1253.67,0.00011232,2]
[422208457,1778697043000,-1807.79,0.00011232,2]
[422208469,1778697043000,-1979.83,0.00011232,2]
[422208460,1778697043000,-500.0,0.00011232,2]
[422208468,1778697043000,-1165.12,0.00011232,2]
[422208459,1778697043000,-269.78019496,0.00011232,2]
[422208462,1778697043000,-878.02,0.00011232,2]
[422208461,1778697043000,-653.62,0.00011232,2]
[422208465,1778697043000,-627.93,0.00011232,2]
[422208463,1778697043000,-2552.96,0.00011232,2]
[422208402,1778697043000,-562.04,0.00011232,2]
[422208464,1778697043000,-1002.78,0.00011232,2]
[422208453,1778697043000,-1101.26,0.00011232,2]
[422208440,1778697043000,-868.66,0.00011232,2]
[422208450,1778697043000,-766.24,0.00011232,2]
[422208437,1778697043000,-500.0,0.00011232,2]
[422208408,1778697043000,-500.0,0.00011232,2]
[422208409,1778697043000,-500.0,0.00011232,2]
[422208442,1778697043000,-753.83,0.00011232,2]
[422208412,1778697043000,-500.0,0.00011232,2]
[422208411,1778697043000,-500.0,0.00011232,2]
[422208410,1778697043000,-500.0,0.00011232,2]
[422208413,1778697043000,-816.11,0.00011232,2]
[422208414,1778697043000,-500.0,0.00011232,2]
[422208419,1778697043000,-881.91,0.00011232,2]
[422208418,1778697043000,-500.0,0.00011232,2]
[422208416,1778697043000,-572.11,0.00011232,2]
[422208417,1778697043000,-500.0,0.00011232,2]
[422208420,1778697043000,-500.0,0.00011232,2]
[422208422,1778697043000,-500.0,0.00011232,2]
[422208432,1778697043000,-1395.13,0.00011232,2]
[422208415,1778697043000,-500.0,0.00011232,2]
[422208433,1778697043000,-693.17,0.00011232,2]
[422208435,1778697043000,-500.0,0.00011232,2]
[422208436,1778697043000,-1049.6,0.00011232,2]
[422208430,1778697043000,-500.0,0.00011232,2]
[422208428,1778697043000,-940.17,0.00011232,2]
[422208429,1778697043000,-749.73,0.00011232,2]
[422208425,1778697043000,-500.0,0.00011232,2]
[422208421,1778697043000,-500.0,0.00011232,2]
[422208431,1778697043000,-550.5,0.00011232,2]
[422208424,1778697043000,-500.0,0.00011232,2]
[422208426,1778697043000,-500.0,0.00011232,2]
[422208427,1778697043000,-500.0,0.00011232,2]
[422208423,1778697043000,-500.0,0.00011232,2]
[422208434,1778697043000,-2000.08,0.00011232,2]
[422208517,1778697044000,-816.11,0.00011506,2]
[422208519,1778697044000,-728.102,0.00011506,2]
[422208525,1778697044000,-500.0,0.00011506,2]
[422208524,1778697044000,-881.91,0.00011506,2]
[422208523,1778697044000,-500.0,0.00011506,2]
[422208513,1778697044000,-500.0,0.00011506,2]
[422208504,1778697044000,-500.0,0.00011506,2]
[422208503,1778697044000,-500.0,0.00011506,2]
[422208505,1778697044000,-500.0,0.00011506,2]
[422208507,1778697044000,-761.31,0.00011506,2]
[422208501,1778697044000,-500.0,0.00011506,2]
[422208500,1778697044000,-500.0,0.00011506,2]
[422208518,1778697044000,-500.0,0.00011506,2]
[422208511,1778697044000,-500.0,0.00011506,2]
[422208512,1778697044000,-500.0,0.00011506,2]
[422208533,1778697044000,-940.17,0.00011506,2]
[422208514,1778697044000,-500.0,0.00011506,2]
[422208520,1778697044000,-500.0,0.00011506,2]
[422208515,1778697044000,-500.0,0.00011506,2]
[422208522,1778697044000,-500.0,0.00011506,2]
[422208521,1778697044000,-572.11,0.00011506,2]
[422208527,1778697044000,-500.0,0.00011506,2]
[422208537,1778697044000,-1395.13,0.00011506,2]
[422208538,1778697044000,-693.17,0.00011506,2]
[422208528,1778697044000,-293.66042968,0.00011506,2]
[422208526,1778697044000,-535.13,0.00011506,2]
[422208530,1778697044000,-500.0,0.00011506,2]
[422208531,1778697044000,-500.0,0.00011506,2]
[422208536,1778697044000,-550.5,0.00011506,2]
[422208502,1778697044000,-500.0,0.00011506,2]
[422208516,1778697044000,-500.0,0.00011506,2]
[422208499,1778697044000,-500.0,0.00011506,2]
[422208471,1778697044000,-956.47,0.00011232,2]
[422208509,1778697044000,-500.0,0.00011506,2]
[422208534,1778697044000,-749.73,0.00011506,2]
[422208470,1778697044000,-500.0,0.00011232,2]
[422208473,1778697044000,-1027.1,0.00011232,2]
[422208474,1778697044000,-1209.53,0.00011232,2]
[422208475,1778697044000,-500.0,0.00011232,2]
[422208477,1778697044000,-670.74,0.00011232,2]
[422208476,1778697044000,-955.12,0.00011232,2]
[422208480,1778697044000,-2462.18,0.00011232,2]
[422208472,1778697044000,-500.0,0.00011232,2]
[422208478,1778697044000,-500.0,0.00011232,2]
[422208483,1778697044000,-500.0,0.00011347,2]
[422208482,1778697044000,-1284.57,0.00011232,2]
[422208479,1778697044000,-1229.37,0.00011232,2]
[422208481,1778697044000,-500.0,0.00011232,2]
[422208485,1778697044000,-284.62501126,0.00011364,21]
[422208495,1778697044000,-585.01681525,0.00011506,2]
[422208496,1778697044000,-500.0,0.00011506,2]
[422208506,1778697044000,-562.04,0.00011506,2]
[422208508,1778697044000,-500.0,0.00011506,2]
[422208498,1778697044000,-500.0,0.00011506,2]
[422208494,1778697044000,-500.0,0.00011506,2]
[422208491,1778697044000,-644.79446246,0.00011464,2]
[422208487,1778697044000,-150.30811288,0.000114,2]
[422208510,1778697044000,-500.0,0.00011506,2]
[422208490,1778697044000,-162.380719,0.00011464,2]
[422208492,1778697044000,-1194.0618,0.00011506,2]
[422208493,1778697044000,-500.0,0.00011506,2]
[422208489,1778697044000,-600.0,0.00011456,2]
[422208486,1778697044000,-154.0,0.00011364,21]
[422208497,1778697044000,-500.0,0.00011506,2]
[422208484,1778697044000,-452.60677896,0.00011364,21]
[422208488,1778697044000,-164.5562762,0.00011406,2]
[422208532,1778697044000,-500.0,0.00011506,2]
[422208596,1778697044000,-1194.0618,0.0001178,2]
[422208535,1778697044000,-500.0,0.00011506,2]
[422208571,1778697044000,-1253.67,0.00011506,2]
[422208570,1778697044000,-761.17,0.00011506,2]
[422208572,1778697044000,-1165.12,0.00011506,2]
[422208577,1778697044000,-1027.1,0.00011506,2]
[422208579,1778697044000,-500.0,0.00011506,2]
[422208578,1778697044000,-1209.53,0.00011506,2]
[422208580,1778697044000,-955.12,0.00011506,2]
[422208581,1778697044000,-670.74,0.00011506,2]
[422208582,1778697044000,-500.0,0.00011506,2]
[422208584,1778697044000,-2462.18,0.00011506,2]
[422208583,1778697044000,-1229.37,0.00011506,2]
[422208586,1778697044000,-1284.57,0.00011506,2]
[422208585,1778697044000,-500.0,0.00011506,2]
[422208593,1778697044000,-364.0,0.00011761,2]
[422208574,1778697044000,-500.0,0.00011506,2]
[422208587,1778697044000,-452.60677896,0.00011509,21]
[422208590,1778697044000,-154.0,0.00011523,21]
[422208592,1778697044000,-396.93810304,0.00011633,2]
[422208591,1778697044000,-151.0,0.0001161,2]
[422208588,1778697044000,-241.29,0.0001151,2]
[422208595,1778697044000,-1680.0,0.00011768,2]
[422208594,1778697044000,-420.0,0.00011761,2]
[422208599,1778697044000,-500.0,0.0001178,2]
[422208597,1778697044000,-500.0,0.0001178,2]
[422208598,1778697044000,-500.0,0.0001178,2]
[422208603,1778697044000,-500.0,0.0001178,2]
[422208529,1778697044000,-500.0,0.00011506,2]
[422208601,1778697044000,-500.0,0.0001178,2]
[422208604,1778697044000,-500.0,0.0001178,2]
[422208602,1778697044000,-500.0,0.0001178,2]
[422208589,1778697044000,-284.62501126,0.00011522,21]
[422208576,1778697044000,-500.0,0.00011506,2]
[422208600,1778697044000,-500.0,0.0001178,2]
[422208568,1778697044000,-1002.78,0.00011506,2]
[422208575,1778697044000,-956.47,0.00011506,2]
[422208540,1778697044000,-500.0,0.00011506,2]
[422208541,1778697044000,-1049.6,0.00011506,2]
[422208542,1778697044000,-500.0,0.00011506,2]
[422208543,1778697044000,-531.39,0.00011506,2]
[422208545,1778697044000,-868.66,0.00011506,2]
[422208546,1778697044000,-755.81,0.00011506,2]
[422208544,1778697044000,-500.0,0.00011506,2]
[422208549,1778697044000,-909.77,0.00011506,2]
[422208547,1778697044000,-753.83,0.00011506,2]
[422208548,1778697044000,-658.35,0.00011506,2]
[422208550,1778697044000,-2402.74,0.00011506,2]
[422208552,1778697044000,-1735.03,0.00011506,2]
[422208551,1778697044000,-500.0,0.00011506,2]
[422208555,1778697044000,-766.24,0.00011506,2]
[422208539,1778697044000,-2000.08,0.00011506,2]
[422208559,1778697044000,-500.0,0.00011506,2]
[422208553,1778697044000,-500.0,0.00011506,2]
[422208573,1778697044000,-1979.83,0.00011506,2]
[422208566,1778697044000,-878.02,0.00011506,2]
[422208563,1778697044000,-13657.84,0.00011506,2]
[422208558,1778697044000,-1101.26,0.00011506,2]
[422208564,1778697044000,-500.0,0.00011506,2]
[422208567,1778697044000,-2552.96,0.00011506,2]
[422208562,1778697044000,-1807.79,0.00011506,2]
[422208561,1778697044000,-516.82,0.00011506,2]
[422208565,1778697044000,-653.62,0.00011506,2]
[422208556,1778697044000,-500.0,0.00011506,2]
[422208569,1778697044000,-627.93,0.00011506,2]
[422208557,1778697044000,-838.87,0.00011506,2]
[422208560,1778697044000,-626.42,0.00011506,2]
[422208554,1778697044000,-1527.5,0.00011506,2]
[422208634,1778697045000,-550.5,0.0001178,2]
[422208646,1778697045000,-658.35,0.0001178,2]
[422208629,1778697045000,-500.0,0.0001178,2]
[422208639,1778697045000,-1049.6,0.0001178,2]
[422208641,1778697045000,-531.39,0.0001178,2]
[422208642,1778697045000,-500.0,0.0001178,2]
[422208645,1778697045000,-753.83,0.0001178,2]
[422208650,1778697045000,-1735.03,0.0001178,2]
[422208651,1778697045000,-500.0,0.0001178,2]
[422208643,1778697045000,-868.66,0.0001178,2]
[422208649,1778697045000,-500.0,0.0001178,2]
[422208644,1778697045000,-755.81,0.0001178,2]
[422208640,1778697045000,-500.0,0.0001178,2]
[422208657,1778697045000,-626.42,0.0001178,2]
[422208647,1778697045000,-909.77,0.0001178,2]
[422208653,1778697045000,-766.24,0.0001178,2]
[422208665,1778697045000,-878.02,0.0001178,2]
[422208666,1778697045000,-1002.78,0.0001178,2]
[422208652,1778697045000,-1527.5,0.0001178,2]
[422208664,1778697045000,-653.62,0.0001178,2]
[422208660,1778697045000,-13657.84,0.0001178,2]
[422208655,1778697045000,-1101.26,0.0001178,2]
[422208662,1778697045000,-500.0,0.0001178,2]
[422208658,1778697045000,-516.82,0.0001178,2]
[422208656,1778697045000,-500.0,0.0001178,2]
[422208633,1778697045000,-500.0,0.0001178,2]
[422208648,1778697045000,-2402.74,0.0001178,2]
[422208636,1778697045000,-693.17,0.0001178,2]
[422208618,1778697045000,-500.0,0.0001178,2]
[422208631,1778697045000,-940.17,0.0001178,2]
[422208606,1778697045000,-500.0,0.0001178,2]
[422208605,1778697045000,-500.0,0.0001178,2]
[422208607,1778697045000,-578.49617101,0.0001178,2]
[422208610,1778697045000,-761.31,0.0001178,2]
[422208612,1778697045000,-500.0,0.0001178,2]
[422208609,1778697045000,-562.04,0.0001178,2]
[422208611,1778697045000,-500.0,0.0001178,2]
[422208616,1778697045000,-500.0,0.0001178,2]
[422208613,1778697045000,-500.0,0.0001178,2]
[422208615,1778697045000,-482.6726783,0.0001178,2]
[422208617,1778697045000,-500.0,0.0001178,2]
[422208614,1778697045000,-500.0,0.0001178,2]
[422208608,1778697045000,-500.0,0.0001178,2]
[422208619,1778697045000,-816.11,0.0001178,2]
[422208621,1778697045000,-572.11,0.0001178,2]
[422208620,1778697045000,-500.0,0.0001178,2]
[422208622,1778697045000,-500.0,0.0001178,2]
[422208624,1778697045000,-881.91,0.0001178,2]
[422208623,1778697045000,-500.0,0.0001178,2]
[422208625,1778697045000,-500.0,0.0001178,2]
[422208626,1778697045000,-500.0,0.0001178,2]
[422208628,1778697045000,-500.0,0.0001178,2]
[422208627,1778697045000,-500.0,0.0001178,2]
[422208632,1778697045000,-749.73,0.0001178,2]
[422208637,1778697045000,-2000.08,0.0001178,2]
[422208630,1778697045000,-500.0,0.0001178,2]
[422208635,1778697045000,-1395.13,0.0001178,2]
[422208638,1778697045000,-500.0,0.0001178,2]
[422208659,1778697045000,-1807.79,0.0001178,2]
[422208669,1778697045000,-761.17,0.0001178,2]
[422208668,1778697045000,-627.93,0.0001178,2]
[422208695,1778697045000,-500.0,0.00012054,2]
[422208696,1778697045000,-500.0,0.00012054,2]
[422208703,1778697045000,-500.0,0.00012054,2]
[422208701,1778697045000,-500.0,0.00012054,2]
[422208706,1778697045000,-500.0,0.00012054,2]
[422208718,1778697045000,-500.0,0.00012054,2]
[422208717,1778697045000,-461.25519785,0.00012054,2]
[422208716,1778697045000,-500.0,0.00012054,2]
[422208708,1778697045000,-500.0,0.00012054,2]